[Event "Titled Tuesday Blitz May 16 Late 2023"]
[White "Hakobyan, Aram"]
[Black "Bortnyk, Olexandr"]
[WhiteFideId "13306677"]
[BlackFideId "14120828"]
[WhiteElo "2584"]
[BlackElo "2734"]
[Result "1/2-1/2"]
[Round "10"]
[TimeControl "180+2"]
[Date "2023.05.16"]
[WhiteClock "0:00:22"]
[BlackClock "0:00:07"]

1. e4 {[%clk 0:03:00]}  Nf6 {[%clk 0:03:00]} 2. e5 {[%clk 0:02:58]}  Nd5 {[%clk 0:03:00]} 3. d4 {[%clk 0:02:58]}  d6 {[%clk 0:03:00]} 4. c4 {[%clk 0:02:57]}  Nb6 {[%clk 0:03:00]} 5. exd6 {[%clk 0:02:57]}  exd6 {[%clk 0:03:01]} 6. Bd3 {[%clk 0:02:54]}  Nc6 {[%clk 0:02:59]} 7. Ne2 {[%clk 0:02:32]}  Be7 {[%clk 0:02:58]} 8. h3 {[%clk 0:02:32]}  Nb4 {[%clk 0:02:53]} 9. Nbc3 {[%clk 0:02:30]}  Nxd3+ {[%clk 0:02:52]} 10. Qxd3 {[%clk 0:02:31]}  O-O {[%clk 0:02:52]} 11. O-O {[%clk 0:02:30]}  Bf6 {[%clk 0:02:41]} 12. Ng3 {[%clk 0:02:25]}  Be6 {[%clk 0:02:35]} 13. b3 {[%clk 0:02:22]}  Re8 {[%clk 0:02:27]} 14. Nh5 {[%clk 0:02:20]}  d5 {[%clk 0:01:50]} 15. c5 {[%clk 0:02:17]}  Nd7 {[%clk 0:01:50]} 16. Bf4 {[%clk 0:02:13]}  c6 {[%clk 0:01:36]} 17. Nxf6+ {[%clk 0:02:08]}  Qxf6 {[%clk 0:01:34]} 18. Qd2 {[%clk 0:02:04]}  Qg6 {[%clk 0:01:32]} 19. Kh2 {[%clk 0:02:02]}  Nf6 {[%clk 0:01:24]} 20. f3 {[%clk 0:01:58]}  Nd7 {[%clk 0:01:13]} 21. Rfe1 {[%clk 0:01:55]}  f6 {[%clk 0:01:13]} 22. Bd6 {[%clk 0:01:53]}  Bf7 {[%clk 0:01:12]} 23. b4 {[%clk 0:01:49]}  a6 {[%clk 0:01:11]} 24. a4 {[%clk 0:01:49]}  Rxe1 {[%clk 0:01:09]} 25. Rxe1 {[%clk 0:01:50]}  Re8 {[%clk 0:01:09]} 26. Rxe8+ {[%clk 0:01:50]}  Bxe8 {[%clk 0:01:10]} 27. b5 {[%clk 0:01:51]}  axb5 {[%clk 0:01:09]} 28. axb5 {[%clk 0:01:52]}  Nf8 {[%clk 0:00:54]} 29. Qe3 {[%clk 0:01:51]}  Qf7 {[%clk 0:00:50]} 30. b6 {[%clk 0:01:50]}  Qe6 {[%clk 0:00:46]} 31. Qf2 {[%clk 0:01:42]}  Ng6 {[%clk 0:00:43]} 32. Ne2 {[%clk 0:01:37]}  Bd7 {[%clk 0:00:40]} 33. Nc1 {[%clk 0:01:34]}  Qf5 {[%clk 0:00:38]} 34. Qe3 {[%clk 0:01:29]}  Qc2 {[%clk 0:00:35]} 35. Ne2 {[%clk 0:01:25]}  h5 {[%clk 0:00:31]} 36. Nf4 {[%clk 0:01:12]}  Nxf4 {[%clk 0:00:25]} 37. Qxf4 {[%clk 0:01:13]}  Qf5 {[%clk 0:00:18]} 38. Qg3 {[%clk 0:01:11]}  Qe6 {[%clk 0:00:09]} 39. Bb8 {[%clk 0:01:11]}  Bc8 {[%clk 0:00:06]} 40. Qc7 {[%clk 0:01:11]}  Qd7 {[%clk 0:00:06]} 41. Qf4 {[%clk 0:01:06]}  Qf5 {[%clk 0:00:06]} 42. Qg3 {[%clk 0:01:02]}  Qe6 {[%clk 0:00:06]} 43. Bf4 {[%clk 0:00:59]}  Kf7 {[%clk 0:00:06]} 44. Bd2 {[%clk 0:00:57]}  Qf5 {[%clk 0:00:05]} 45. Qc7+ {[%clk 0:00:57]}  Qd7 {[%clk 0:00:05]} 46. h4 {[%clk 0:00:51]}  Ke7 {[%clk 0:00:05]} 47. Bf4 {[%clk 0:00:46]}  Kf7 {[%clk 0:00:05]} 48. Kg1 {[%clk 0:00:42]}  Kg6 {[%clk 0:00:05]} 49. Bg3 {[%clk 0:00:40]}  Kf7 {[%clk 0:00:05]} 50. Kf2 {[%clk 0:00:38]}  Kg6 {[%clk 0:00:06]} 51. Bf4 {[%clk 0:00:37]}  Qf5 {[%clk 0:00:06]} 52. Kg3 {[%clk 0:00:30]}  Qd7 {[%clk 0:00:06]} 53. Bd6 {[%clk 0:00:30]}  Kf7 {[%clk 0:00:06]} 54. Kf4 {[%clk 0:00:29]}  Kg6 {[%clk 0:00:07]} 55. Kg3 {[%clk 0:00:27]}  Kf7 {[%clk 0:00:07]} 56. Qxd7+ {[%clk 0:00:26]}  Bxd7 {[%clk 0:00:07]} 57. Kf4 {[%clk 0:00:22]}  Kg6 {[%clk 0:00:07]} 1/2-1/2


[Site "https://www.chess.com"]

[Event "Titled Tuesday Blitz May 16 Late 2023"]
[White "Mihajlov, Sebastian"]
[Black "Bluebaum, Matthias"]
[WhiteFideId "1512110"]
[BlackFideId "24651516"]
[WhiteElo "2478"]
[BlackElo "2639"]
[Result "0-1"]
[Round "10"]
[TimeControl "180+2"]
[Date "2023.05.16"]
[WhiteClock "0:01:17"]
[BlackClock "0:02:04"]

1. e4 {[%clk 0:03:00]}  e6 {[%clk 0:03:00]} 2. d4 {[%clk 0:03:00]}  d5 {[%clk 0:03:01]} 3. Nc3 {[%clk 0:03:00]}  Nf6 {[%clk 0:03:01]} 4. Bg5 {[%clk 0:03:01]}  dxe4 {[%clk 0:03:01]} 5. Nxe4 {[%clk 0:03:01]}  Be7 {[%clk 0:03:02]} 6. Nxf6+ {[%clk 0:02:57]}  Bxf6 {[%clk 0:03:02]} 7. Bxf6 {[%clk 0:02:57]}  Qxf6 {[%clk 0:03:03]} 8. Nf3 {[%clk 0:02:58]}  O-O {[%clk 0:03:04]} 9. Qd3 {[%clk 0:02:58]}  Bd7 {[%clk 0:03:05]} 10. Ne5 {[%clk 0:02:56]}  Rd8 {[%clk 0:03:03]} 11. Qe3 {[%clk 0:02:56]}  Nc6 {[%clk 0:02:59]} 12. c3 {[%clk 0:02:41]}  Ne7 {[%clk 0:02:50]} 13. Nxd7 {[%clk 0:02:38]}  Rxd7 {[%clk 0:02:50]} 14. Be2 {[%clk 0:02:34]}  Rad8 {[%clk 0:02:44]} 15. O-O {[%clk 0:02:24]}  Nd5 {[%clk 0:02:42]} 16. Qc1 {[%clk 0:02:07]}  Nf4 {[%clk 0:02:21]} 17. Bf3 {[%clk 0:02:07]}  c5 {[%clk 0:02:18]} 18. dxc5 {[%clk 0:02:03]}  Rd3 {[%clk 0:02:18]} 19. Rd1 {[%clk 0:01:39]}  Rxf3 {[%clk 0:02:04]} 20. Rxd8+ {[%clk 0:01:17]}  Qxd8 {[%clk 0:02:04]} 0-1


[Site "https://www.chess.com"]

[Event "Titled Tuesday Blitz May 16 Late 2023"]
[White "Kramnik, Vladimir"]
[Black "Naroditsky, Daniel"]
[WhiteFideId "4101588"]
[BlackFideId "2026961"]
[WhiteElo "2703"]
[BlackElo "2633"]
[Result "0-1"]
[Round "10"]
[TimeControl "180+2"]
[Date "2023.05.16"]
[WhiteClock "0:00:00"]
[BlackClock "0:00:06"]

1. e4 {[%clk 0:03:00]}  c5 {[%clk 0:02:57]} 2. Nf3 {[%clk 0:03:00]}  d6 {[%clk 0:02:57]} 3. d4 {[%clk 0:03:00]}  cxd4 {[%clk 0:02:58]} 4. Nxd4 {[%clk 0:03:00]}  Nf6 {[%clk 0:02:58]} 5. Nc3 {[%clk 0:03:00]}  a6 {[%clk 0:02:59]} 6. Bc4 {[%clk 0:02:58]}  e6 {[%clk 0:02:59]} 7. Be3 {[%clk 0:02:58]}  b5 {[%clk 0:02:56]} 8. Bb3 {[%clk 0:02:58]}  Qc7 {[%clk 0:02:56]} 9. f3 {[%clk 0:02:55]}  Be7 {[%clk 0:02:55]} 10. g4 {[%clk 0:02:52]}  b4 {[%clk 0:02:30]} 11. Nce2 {[%clk 0:02:35]}  h6 {[%clk 0:02:21]} 12. c3 {[%clk 0:02:23]}  bxc3 {[%clk 0:02:16]} 13. Nxc3 {[%clk 0:02:23]}  Nbd7 {[%clk 0:01:59]} 14. Rc1 {[%clk 0:02:04]}  Nc5 {[%clk 0:01:59]} 15. Ba4+ {[%clk 0:01:45]}  Bd7 {[%clk 0:01:33]} 16. Bxd7+ {[%clk 0:01:45]}  Qxd7 {[%clk 0:01:33]} 17. b4 {[%clk 0:01:45]}  Nb7 {[%clk 0:01:33]} 18. a4 {[%clk 0:01:38]}  O-O {[%clk 0:01:32]} 19. O-O {[%clk 0:01:37]}  Rfc8 {[%clk 0:01:30]} 20. Qe2 {[%clk 0:01:26]}  Rc7 {[%clk 0:00:56]} 21. b5 {[%clk 0:01:23]}  axb5 {[%clk 0:00:57]} 22. Ndxb5 {[%clk 0:01:22]}  Rcc8 {[%clk 0:00:56]} 23. Rfd1 {[%clk 0:01:21]}  Ne8 {[%clk 0:00:50]} 24. Bd4 {[%clk 0:01:14]}  Na5 {[%clk 0:00:50]} 25. Qa2 {[%clk 0:01:05]}  Bg5 {[%clk 0:00:49]} 26. Rb1 {[%clk 0:01:02]}  Nc4 {[%clk 0:00:48]} 27. Qe2 {[%clk 0:01:00]}  Bf4 {[%clk 0:00:45]} 28. Bf2 {[%clk 0:00:56]}  Qe7 {[%clk 0:00:42]} 29. Rd4 {[%clk 0:00:51]}  Ne5 {[%clk 0:00:42]} 30. Bg3 {[%clk 0:00:48]}  Qf6 {[%clk 0:00:40]} 31. Kg2 {[%clk 0:00:46]}  Ng6 {[%clk 0:00:38]} 32. Rbd1 {[%clk 0:00:38]}  Be5 {[%clk 0:00:36]} 33. Qe3 {[%clk 0:00:27]}  Bxd4 {[%clk 0:00:36]} 34. Rxd4 {[%clk 0:00:23]}  Rc6 {[%clk 0:00:34]} 35. f4 {[%clk 0:00:20]}  Rac8 {[%clk 0:00:30]} 36. e5 {[%clk 0:00:15]}  dxe5 {[%clk 0:00:28]} 37. fxe5 {[%clk 0:00:15]}  Qe7 {[%clk 0:00:26]} 38. Ne4 {[%clk 0:00:15]}  Rc2+ {[%clk 0:00:25]} 39. Kh3 {[%clk 0:00:15]}  Nc7 {[%clk 0:00:20]} 40. Ned6 {[%clk 0:00:13]}  Rb8 {[%clk 0:00:13]} 41. Qd3 {[%clk 0:00:13]}  Rc5 {[%clk 0:00:10]} 42. Ne4 {[%clk 0:00:07]}  Nxb5 {[%clk 0:00:07]} 43. Rd7 {[%clk 0:00:07]}  Qh4+ {[%clk 0:00:07]} 44. Bxh4 {[%clk 0:00:06]}  Nf4+ {[%clk 0:00:07]} 45. Kg3 {[%clk 0:00:07]}  Nxd3 {[%clk 0:00:08]} 46. Rxd3 {[%clk 0:00:05]}  Rxe5 {[%clk 0:00:04]} 47. Kf4 {[%clk 0:00:03]}  Rd5 {[%clk 0:00:04]} 48. Rb3 {[%clk 0:00:03]}  g5+ {[%clk 0:00:04]} 49. Bxg5 {[%clk 0:00:02]}  hxg5+ {[%clk 0:00:05]} 50. Nxg5 {[%clk 0:00:02]}  Rd4+ {[%clk 0:00:05]} 51. Kg3 {[%clk 0:00:00]}  Rxa4 {[%clk 0:00:06]} 0-1


[Site "https://www.chess.com"]

[Event "Titled Tuesday Blitz May 16 Late 2023"]
[White "Caruana, Fabiano"]
[Black "Grigoriants, Sergey"]
[WhiteFideId "2020009"]
[BlackFideId "4130804"]
[WhiteElo "2837"]
[BlackElo "2502"]
[Result "1/2-1/2"]
[Round "10"]
[TimeControl "180+2"]
[Date "2023.05.16"]
[WhiteClock "0:00:17"]
[BlackClock "0:00:15"]

1. c4 {[%clk 0:03:00]}  e5 {[%clk 0:02:56]} 2. Nc3 {[%clk 0:03:00]}  Nf6 {[%clk 0:02:56]} 3. g3 {[%clk 0:03:00]}  Bb4 {[%clk 0:02:54]} 4. e4 {[%clk 0:03:00]}  O-O {[%clk 0:02:49]} 5. Nge2 {[%clk 0:02:59]}  Nc6 {[%clk 0:02:44]} 6. Bg2 {[%clk 0:02:57]}  Bc5 {[%clk 0:02:41]} 7. O-O {[%clk 0:02:56]}  a6 {[%clk 0:02:42]} 8. d3 {[%clk 0:02:54]}  d6 {[%clk 0:02:42]} 9. h3 {[%clk 0:02:53]}  h6 {[%clk 0:02:43]} 10. Kh2 {[%clk 0:02:53]}  Rb8 {[%clk 0:02:42]} 11. f4 {[%clk 0:02:41]}  b5 {[%clk 0:02:41]} 12. f5 {[%clk 0:02:36]}  Nd4 {[%clk 0:02:40]} 13. Nxd4 {[%clk 0:02:31]}  Bxd4 {[%clk 0:02:40]} 14. cxb5 {[%clk 0:02:26]}  axb5 {[%clk 0:02:37]} 15. Ne2 {[%clk 0:02:24]}  Bb6 {[%clk 0:02:27]} 16. g4 {[%clk 0:02:23]}  d5 {[%clk 0:02:23]} 17. Qe1 {[%clk 0:01:56]}  dxe4 {[%clk 0:02:20]} 18. dxe4 {[%clk 0:01:57]}  Bb7 {[%clk 0:02:10]} 19. Ng3 {[%clk 0:01:56]}  Ra8 {[%clk 0:01:57]} 20. Bf3 {[%clk 0:01:48]}  Ra4 {[%clk 0:01:52]} 21. Kg2 {[%clk 0:01:33]}  Qa8 {[%clk 0:01:48]} 22. b3 {[%clk 0:01:19]}  Rxa2+ {[%clk 0:01:43]} 23. Rxa2 {[%clk 0:01:20]}  Qxa2+ {[%clk 0:01:43]} 24. Qd2 {[%clk 0:01:16]}  Qxd2+ {[%clk 0:01:31]} 25. Bxd2 {[%clk 0:01:17]}  Rd8 {[%clk 0:01:32]} 26. Bc3 {[%clk 0:01:13]}  Bd4 {[%clk 0:01:27]} 27. Ba5 {[%clk 0:01:10]}  Ra8 {[%clk 0:01:23]} 28. b4 {[%clk 0:00:50]}  c5 {[%clk 0:01:23]} 29. h4 {[%clk 0:00:50]}  cxb4 {[%clk 0:01:22]} 30. Bxb4 {[%clk 0:00:51]}  Ra2+ {[%clk 0:01:21]} 31. Kh3 {[%clk 0:00:51]}  Rf2 {[%clk 0:00:48]} 32. Rxf2 {[%clk 0:00:30]}  Bxf2 {[%clk 0:00:48]} 33. g5 {[%clk 0:00:30]}  hxg5 {[%clk 0:00:44]} 34. hxg5 {[%clk 0:00:31]}  Bxg3 {[%clk 0:00:26]} 35. Kxg3 {[%clk 0:00:31]}  Nxe4+ {[%clk 0:00:26]} 36. Kg2 {[%clk 0:00:31]}  f6 {[%clk 0:00:18]} 37. g6 {[%clk 0:00:27]}  Bd5 {[%clk 0:00:18]} 38. Ba5 {[%clk 0:00:20]}  Bb7 {[%clk 0:00:15]} 39. Bb4 {[%clk 0:00:19]}  Bd5 {[%clk 0:00:15]} 40. Ba5 {[%clk 0:00:17]}  Bb7 {[%clk 0:00:15]} 41. Bb4 {[%clk 0:00:17]} 1/2-1/2


[Site "https://www.chess.com"]

[Event "Titled Tuesday Blitz May 16 Late 2023"]
[White "Durarbayli, Vasif"]
[Black "Andreikin, Dmitry"]
[WhiteFideId "13402935"]
[BlackFideId "4158814"]
[WhiteElo "2551"]
[BlackElo "2736"]
[Result "0-1"]
[Round "10"]
[TimeControl "180+2"]
[Date "2023.05.16"]
[WhiteClock "0:00:00"]
[BlackClock "0:00:01"]

1. e4 {[%clk 0:03:00]}  g6 {[%clk 0:03:00]} 2. d4 {[%clk 0:03:00]}  Bg7 {[%clk 0:03:01]} 3. Nc3 {[%clk 0:03:01]}  d6 {[%clk 0:03:00]} 4. Be3 {[%clk 0:03:01]}  a6 {[%clk 0:03:00]} 5. g4 {[%clk 0:03:01]}  b5 {[%clk 0:02:59]} 6. Bg2 {[%clk 0:03:02]}  b4 {[%clk 0:02:56]} 7. Nd5 {[%clk 0:02:41]}  a5 {[%clk 0:02:53]} 8. a3 {[%clk 0:02:30]}  c6 {[%clk 0:02:31]} 9. Nf4 {[%clk 0:02:30]}  bxa3 {[%clk 0:02:18]} 10. Rxa3 {[%clk 0:02:31]}  Nf6 {[%clk 0:02:18]} 11. h3 {[%clk 0:02:13]}  O-O {[%clk 0:02:17]} 12. Nge2 {[%clk 0:02:11]}  Nbd7 {[%clk 0:02:15]} 13. g5 {[%clk 0:01:59]}  Ne8 {[%clk 0:02:12]} 14. h4 {[%clk 0:01:59]}  e5 {[%clk 0:02:03]} 15. Nd3 {[%clk 0:01:55]}  Nc7 {[%clk 0:01:59]} 16. dxe5 {[%clk 0:01:47]}  Nb5 {[%clk 0:01:55]} 17. Ra4 {[%clk 0:01:33]}  Nb6 {[%clk 0:01:50]} 18. Ra1 {[%clk 0:01:19]}  Nc4 {[%clk 0:01:48]} 19. Bc1 {[%clk 0:01:16]}  Bg4 {[%clk 0:01:46]} 20. f3 {[%clk 0:01:15]}  Bh5 {[%clk 0:01:42]} 21. exd6 {[%clk 0:01:13]}  Qxd6 {[%clk 0:01:39]} 22. Bf4 {[%clk 0:01:08]}  Qe7 {[%clk 0:01:37]} 23. Kf2 {[%clk 0:01:07]}  Nxb2 {[%clk 0:01:30]} 24. Nxb2 {[%clk 0:01:02]}  Bxb2 {[%clk 0:01:30]} 25. Ra2 {[%clk 0:00:46]}  Rfd8 {[%clk 0:01:28]} 26. Qe1 {[%clk 0:00:39]}  Qc5+ {[%clk 0:01:04]} 27. Be3 {[%clk 0:00:29]}  Qxc2 {[%clk 0:01:04]} 28. Qb1 {[%clk 0:00:30]}  Qxb1 {[%clk 0:00:25]} 29. Rxb1 {[%clk 0:00:31]}  Be5 {[%clk 0:00:24]} 30. Bb6 {[%clk 0:00:31]}  Rd3 {[%clk 0:00:15]} 31. Rxa5 {[%clk 0:00:25]}  Re8 {[%clk 0:00:13]} 32. Rc1 {[%clk 0:00:16]}  Rd2 {[%clk 0:00:12]} 33. Be3 {[%clk 0:00:15]}  Rb2 {[%clk 0:00:11]} 34. Kf1 {[%clk 0:00:12]}  f5 {[%clk 0:00:08]} 35. gxf6 {[%clk 0:00:11]}  Bxf6 {[%clk 0:00:09]} 36. Rxc6 {[%clk 0:00:12]}  Bxh4 {[%clk 0:00:08]} 37. Rb6 {[%clk 0:00:08]}  Rb1+ {[%clk 0:00:04]} 38. Nc1 {[%clk 0:00:09]}  Rc8 {[%clk 0:00:03]} 39. Rbxb5 {[%clk 0:00:05]}  Rcxc1+ {[%clk 0:00:03]} 40. Bxc1 {[%clk 0:00:06]}  Rxc1+ {[%clk 0:00:04]} 41. Ke2 {[%clk 0:00:06]}  Rc2+ {[%clk 0:00:05]} 42. Kf1 {[%clk 0:00:06]}  Rc1+ {[%clk 0:00:05]} 43. Ke2 {[%clk 0:00:06]}  Rc2+ {[%clk 0:00:05]} 44. Kf1 {[%clk 0:00:06]}  Kg7 {[%clk 0:00:03]} 45. Rb7+ {[%clk 0:00:04]}  Kh6 {[%clk 0:00:03]} 46. Rab5 {[%clk 0:00:04]}  Rc1+ {[%clk 0:00:03]} 47. Ke2 {[%clk 0:00:04]}  Rc2+ {[%clk 0:00:04]} 48. Kf1 {[%clk 0:00:05]}  Rf2+ {[%clk 0:00:02]} 49. Kg1 {[%clk 0:00:05]}  Bxf3 {[%clk 0:00:03]} 50. Rb2 {[%clk 0:00:00]}  Rxg2+ {[%clk 0:00:01]} 0-1


[Site "https://www.chess.com"]

[Event "Titled Tuesday Blitz May 16 Late 2023"]
[White "Kamsky, Gata"]
[Black "Martinez Alcantara, Jose Eduardo"]
[WhiteFideId "2000024"]
[BlackFideId "3805662"]
[WhiteElo "2660"]
[BlackElo "2711"]
[Result "0-1"]
[Round "10"]
[TimeControl "180+2"]
[Date "2023.05.16"]
[WhiteClock "0:00:00"]
[BlackClock "0:00:04"]

1. e4 {[%clk 0:03:00]}  c5 {[%clk 0:02:58]} 2. Nf3 {[%clk 0:03:00]}  d6 {[%clk 0:02:59]} 3. d4 {[%clk 0:03:00]}  cxd4 {[%clk 0:03:00]} 4. Nxd4 {[%clk 0:03:01]}  Nf6 {[%clk 0:03:00]} 5. Nc3 {[%clk 0:03:01]}  a6 {[%clk 0:03:01]} 6. a4 {[%clk 0:03:01]}  g6 {[%clk 0:02:56]} 7. Be2 {[%clk 0:03:01]}  Bg7 {[%clk 0:02:57]} 8. O-O {[%clk 0:03:01]}  O-O {[%clk 0:02:57]} 9. Be3 {[%clk 0:02:59]}  Nc6 {[%clk 0:02:57]} 10. Qd2 {[%clk 0:02:59]}  Bd7 {[%clk 0:02:57]} 11. Rfd1 {[%clk 0:02:58]}  Rc8 {[%clk 0:02:57]} 12. f3 {[%clk 0:02:56]}  Na5 {[%clk 0:02:45]} 13. Nd5 {[%clk 0:02:51]}  Nc6 {[%clk 0:02:14]} 14. Nxc6 {[%clk 0:02:47]}  Bxc6 {[%clk 0:02:15]} 15. Nb6 {[%clk 0:02:45]}  Rb8 {[%clk 0:02:13]} 16. a5 {[%clk 0:02:43]}  Nd7 {[%clk 0:02:10]} 17. c4 {[%clk 0:02:43]}  Nxb6 {[%clk 0:02:10]} 18. Bxb6 {[%clk 0:02:35]}  Qc8 {[%clk 0:02:09]} 19. Rac1 {[%clk 0:02:13]}  f5 {[%clk 0:02:06]} 20. exf5 {[%clk 0:02:10]}  Qxf5 {[%clk 0:02:06]} 21. b4 {[%clk 0:02:05]}  Be5 {[%clk 0:01:59]} 22. Bd4 {[%clk 0:01:52]}  Rbc8 {[%clk 0:01:45]} 23. Bxe5 {[%clk 0:01:47]}  Qxe5 {[%clk 0:01:46]} 24. Re1 {[%clk 0:01:42]}  Qf4 {[%clk 0:01:40]} 25. Qxf4 {[%clk 0:01:40]}  Rxf4 {[%clk 0:01:41]} 26. b5 {[%clk 0:01:25]}  Be8 {[%clk 0:01:34]} 27. bxa6 {[%clk 0:01:25]}  bxa6 {[%clk 0:01:35]} 28. c5 {[%clk 0:01:25]}  dxc5 {[%clk 0:01:18]} 29. Bxa6 {[%clk 0:01:23]}  Ra8 {[%clk 0:01:17]} 30. Bc4+ {[%clk 0:01:18]}  Kf8 {[%clk 0:01:17]} 31. a6 {[%clk 0:01:14]}  Bf7 {[%clk 0:01:17]} 32. Bb5 {[%clk 0:01:11]}  c4 {[%clk 0:01:08]} 33. Re5 {[%clk 0:01:06]}  Rf6 {[%clk 0:00:59]} 34. Rc5 {[%clk 0:01:05]}  Ra7 {[%clk 0:00:59]} 35. Rc8+ {[%clk 0:01:01]}  Kg7 {[%clk 0:00:59]} 36. Rb8 {[%clk 0:00:58]}  Rf5 {[%clk 0:00:49]} 37. Rb6 {[%clk 0:00:44]}  Rc5 {[%clk 0:00:47]} 38. Rc3 {[%clk 0:00:42]}  g5 {[%clk 0:00:34]} 39. Bc6 {[%clk 0:00:40]}  Rc7 {[%clk 0:00:25]} 40. Bb5 {[%clk 0:00:28]}  Ra7 {[%clk 0:00:24]} 41. Kf2 {[%clk 0:00:28]}  h5 {[%clk 0:00:23]} 42. Ke3 {[%clk 0:00:25]}  h4 {[%clk 0:00:23]} 43. Kd2 {[%clk 0:00:25]}  Rd5+ {[%clk 0:00:22]} 44. Kc1 {[%clk 0:00:24]}  Re5 {[%clk 0:00:23]} 45. Bc6 {[%clk 0:00:20]}  Ra5 {[%clk 0:00:20]} 46. Bb7 {[%clk 0:00:19]}  Ra2 {[%clk 0:00:16]} 47. Rc2 {[%clk 0:00:19]}  Ra3 {[%clk 0:00:15]} 48. Kb2 {[%clk 0:00:17]}  Ra5 {[%clk 0:00:13]} 49. g3 {[%clk 0:00:16]}  Re5 {[%clk 0:00:09]} 50. f4 {[%clk 0:00:14]}  gxf4 {[%clk 0:00:09]} 51. gxf4 {[%clk 0:00:14]}  Rf5 {[%clk 0:00:10]} 52. Rg2+ {[%clk 0:00:13]}  Kf8 {[%clk 0:00:10]} 53. Rg4 {[%clk 0:00:14]}  h3 {[%clk 0:00:10]} 54. Rh4 {[%clk 0:00:14]}  Kg7 {[%clk 0:00:10]} 55. Kc3 {[%clk 0:00:13]}  Ra5 {[%clk 0:00:09]} 56. Rbh6 {[%clk 0:00:12]}  Ra3+ {[%clk 0:00:08]} 57. Kb2 {[%clk 0:00:11]}  Rb3+ {[%clk 0:00:08]} 58. Kc2 {[%clk 0:00:10]}  Bg6+ {[%clk 0:00:08]} 59. Rxg6+ {[%clk 0:00:06]}  Kxg6 {[%clk 0:00:08]} 60. f5+ {[%clk 0:00:05]}  Kxf5 {[%clk 0:00:06]} 61. Rxc4 {[%clk 0:00:05]}  Ra3 {[%clk 0:00:05]} 62. Kb2 {[%clk 0:00:03]}  Ra5 {[%clk 0:00:05]} 63. Rh4 {[%clk 0:00:03]}  e5 {[%clk 0:00:05]} 64. Rxh3 {[%clk 0:00:02]}  R5xa6 {[%clk 0:00:04]} 65. Bxa6 {[%clk 0:00:02]}  Rxa6 {[%clk 0:00:04]} 66. Kc2 {[%clk 0:00:02]}  Kf4 {[%clk 0:00:05]} 67. Rh4+ {[%clk 0:00:02]}  Kf3 {[%clk 0:00:05]} 68. Kd2 {[%clk 0:00:02]}  e4 {[%clk 0:00:03]} 69. Rh3+ {[%clk 0:00:00]}  Kf2 {[%clk 0:00:04]} 0-1


[Site "https://www.chess.com"]

[Event "Titled Tuesday Blitz May 16 Late 2023"]
[White "Xiong, Jeffery"]
[Black "Sarana, Alexey"]
[WhiteFideId "2047640"]
[BlackFideId "24133795"]
[WhiteElo "2726"]
[BlackElo "2714"]
[Result "0-1"]
[Round "10"]
[TimeControl "180+2"]
[Date "2023.05.16"]
[WhiteClock "0:00:15"]
[BlackClock "0:00:04"]

1. e4 {[%clk 0:03:00]}  c5 {[%clk 0:03:00]} 2. Nf3 {[%clk 0:03:01]}  d6 {[%clk 0:03:01]} 3. Nc3 {[%clk 0:03:01]}  Nf6 {[%clk 0:03:01]} 4. d4 {[%clk 0:03:02]}  cxd4 {[%clk 0:03:02]} 5. Qxd4 {[%clk 0:03:03]}  Nc6 {[%clk 0:03:00]} 6. Qd3 {[%clk 0:03:03]}  g6 {[%clk 0:02:56]} 7. Nd5 {[%clk 0:03:03]}  Bg7 {[%clk 0:02:56]} 8. c3 {[%clk 0:03:04]}  O-O {[%clk 0:02:51]} 9. Bg5 {[%clk 0:03:04]}  Nxd5 {[%clk 0:02:48]} 10. exd5 {[%clk 0:03:05]}  Ne5 {[%clk 0:02:45]} 11. Nxe5 {[%clk 0:03:05]}  dxe5 {[%clk 0:02:41]} 12. Be2 {[%clk 0:03:05]}  Qd6 {[%clk 0:02:39]} 13. Rd1 {[%clk 0:03:02]}  b6 {[%clk 0:02:38]} 14. O-O {[%clk 0:03:00]}  f5 {[%clk 0:02:34]} 15. f3 {[%clk 0:02:18]}  f4 {[%clk 0:02:24]} 16. Qc2 {[%clk 0:02:13]}  Bf5 {[%clk 0:02:23]} 17. Bd3 {[%clk 0:02:13]}  Rac8 {[%clk 0:02:03]} 18. Be4 {[%clk 0:02:10]}  Bxe4 {[%clk 0:01:29]} 19. Qxe4 {[%clk 0:02:09]}  Bf6 {[%clk 0:01:29]} 20. Bh6 {[%clk 0:01:33]}  Rfd8 {[%clk 0:01:24]} 21. g3 {[%clk 0:01:33]}  Rc5 {[%clk 0:00:49]} 22. c4 {[%clk 0:01:28]}  b5 {[%clk 0:00:50]} 23. b3 {[%clk 0:01:29]}  bxc4 {[%clk 0:00:49]} 24. bxc4 {[%clk 0:01:30]}  Rdc8 {[%clk 0:00:46]} 25. Rc1 {[%clk 0:01:28]}  Qa6 {[%clk 0:00:38]} 26. gxf4 {[%clk 0:01:28]}  Rxc4 {[%clk 0:00:38]} 27. Rxc4 {[%clk 0:01:29]}  Rxc4 {[%clk 0:00:38]} 28. Qe2 {[%clk 0:01:29]}  exf4 {[%clk 0:00:32]} 29. d6 {[%clk 0:01:29]}  Kf7 {[%clk 0:00:24]} 30. Re1 {[%clk 0:01:29]}  e5 {[%clk 0:00:14]} 31. Bxf4 {[%clk 0:01:21]}  exf4 {[%clk 0:00:09]} 32. Qe8+ {[%clk 0:01:21]}  Kg7 {[%clk 0:00:10]} 33. Qd7+ {[%clk 0:01:22]}  Kh6 {[%clk 0:00:10]} 34. Qh3+ {[%clk 0:01:23]}  Kg7 {[%clk 0:00:10]} 35. Qd7+ {[%clk 0:01:23]}  Kh6 {[%clk 0:00:07]} 36. Qh3+ {[%clk 0:01:23]}  Kg5 {[%clk 0:00:04]} 37. Kh1 {[%clk 0:01:21]}  h5 {[%clk 0:00:03]} 38. Qe6 {[%clk 0:00:29]}  Qc6 {[%clk 0:00:03]} 39. Rf1 {[%clk 0:00:20]}  Rc1 {[%clk 0:00:03]} 40. h4+ {[%clk 0:00:19]}  Kh6 {[%clk 0:00:02]} 41. Rxc1 {[%clk 0:00:19]}  Qxc1+ {[%clk 0:00:03]} 42. Kg2 {[%clk 0:00:20]}  Qd2+ {[%clk 0:00:03]} 43. Kh3 {[%clk 0:00:20]}  Qd4 {[%clk 0:00:04]} 44. d7 {[%clk 0:00:15]}  Kg7 {[%clk 0:00:04]} 0-1


[Site "https://www.chess.com"]